bitfinex-derivatives/quotes_ETHF0:USTF0_20220106
["timestamp","ask_amount","ask_price","bid_price","bid_amount"]
[1641465271356,2.637184,3355.2,3355.1,1.496]
[1641465271552,3.137184,3355.2,3355.1,1.496]
[1641465272552,15.997184,3355.2,3355.1,1.496]
[1641465272952,16.997184,3355.2,3354.6,0.00958]
[1641465273353,2.00479,3354.7,3354.6,1.50558]
[1641465273754,0.132394,3354.8,3354.6,1.50558]
[1641465273958,0.132394,3354.8,3354.6,0.00958]
[1641465275253,2.00479,3354.7,3354.6,0.00958]
[1641465275454,14.86479,3354.7,3354.6,0.00958]
[1641465275754,16.3552118,3354.7,3354.6,0.00958]
[1641465276155,21.1247108,3354.7,3354.6,0.00958]
[1641465277355,21.52498787,3354.7,3354.6,0.00958]
[1641465277555,22.36847238,3354.7,3354.6,0.00958]
[1641465277755,22.36847238,3354.7,3353.6,1.24318491]
[1641465277959,22.36847238,3354.7,3353.9,1.496]
[1641465278156,0.132394,3354.6,3353.9,1.496]
[1641465278557,12.86,3354.4,3353.6,1.24318491]
[1641465278759,0.132394,3354.3,3353.5,1.24318491]
[1641465278958,12.86,3354.2,3353.5,1.24318491]
[1641465279361,16.86958,3353.6,3353.5,1.24318491]
[1641465279758,16.86958,3353.6,3353.3,1.496]
[1641465279759,17.001974,3353.6,3353.3,1.496]
[1641465279959,17.001974,3353.6,3352.8,1.496]
[1641465280359,17.001974,3353.6,3352.3,3.50479]
[1641465280560,17.001974,3353.6,3353.4,1.496]
[1641465280760,4.141974,3353.6,3353.4,1.496]
[1641465281565,4.141974,3353.6,3352.3,2.00479]
[1641465281763,12.86,3353.5,3352.8,1.496]
[1641465281961,0.132394,3353.4,3352.3,2.00479]
[1641465282161,0.132394,3353.4,3352.9,1.496]
[1641465282365,4.00958,3353.6,3353.3,1.496]
[1641465282564,35.16288842,3354.6,3353.5,2.996]
[1641465282764,32.8606,3354.7,3354.3,1.496]
[1641465282963,0.132394,3354.6,3353.6,1.5]
[1641465283263,0.132394,3354.6,3353.5,3.73997972]
[1641465283563,0.5,3353.6,3353.5,0.7538]
[1641465283765,0.132394,3354.0,3353.6,0.5]
[1641465284171,0.132394,3354.0,3353.9,1.496]
[1641465284374,2.00479,3354.1,3353.9,1.496]
[1641465284872,2.00479,3354.1,3353.6,0.5]
[1641465285072,2.00479,3354.1,3353.9,1.496]
[1641465285272,2.00479,3354.1,3353.8,1.496]
[1641465285472,2.00479,3354.1,3354.0,1.496]
[1641465286075,2.00479,3354.1,3354.0,0.996]
[1641465287676,2.00479,3354.1,3354.0,1.496]
[1641465288080,2.00479,3354.1,3354.0,0.5]
[1641465288279,14.86479,3354.1,3354.0,0.5]
[1641465288477,14.86479,3354.1,3354.0,1.496]
[1641465288478,2.00479,3354.1,3354.0,1.496]
[1641465288878,2.00479,3354.1,3354.0,0.5]
[1641465290380,14.86479,3354.1,3354.0,0.5]
[1641465290979,2.00479,3354.1,3354.0,1.496]
[1641465291179,14.86479,3354.1,3354.0,0.5]
[1641465293884,15.36479,3354.1,3352.6,1.49056621]
[1641465294084,16.85556064,3354.1,3353.0,0.996]
[1641465294285,12.86,3353.9,3353.0,0.996]
[1641465294686,12.86,3353.7,3353.0,0.996]
[1641465294886,0.132394,3353.6,3353.0,0.996]
[1641465295488,16.86958,3353.1,3353.0,0.996]
[1641465295790,17.001974,3353.1,3352.3,0.996]
[1641465295986,17.505974,3353.1,3352.3,0.996]
[1641465296188,18.49320037,3353.1,3351.8,0.996]
[1641465296391,12.86,3352.9,3352.1,0.996]
[1641465296588,0.132394,3352.8,3351.8,0.996]
[1641465296788,12.86,3352.7,3351.8,0.996]
[1641465297189,12.86,3352.5,3351.8,0.996]
[1641465297389,14.86479,3351.9,3351.8,0.996]
[1641465297589,15.63129,3351.9,3351.7,1.24318491]
[1641465297789,0.132394,3351.8,3351.7,1.24318491]
[1641465298090,0.132394,3351.8,3351.5,0.996]
[1641465298491,0.132394,3351.8,3351.4,3.00079]
[1641465298892,0.132394,3351.8,3351.4,0.996]
[1641465299092,12.992394,3351.8,3350.9,1.24318491]
[1641465299495,2.00479,3351.0,3350.9,1.24318491]
[1641465299694,2.00479,3351.0,3350.9,1.225991]
[1641465301195,2.00479,3351.0,3350.9,2.725991]
[1641465301398,4.00958,3351.9,3350.9,2.725991]
[1641465301594,32.9901,3353.0,3351.8,0.996]
[1641465301795,2.49457993,3353.1,3352.7,0.496]
[1641465301997,0.132394,3353.0,3352.7,0.496]
[1641465302198,12.992394,3353.0,3352.7,0.496]
[1641465302597,12.992394,3353.0,3352.5,0.496]
[1641465302997,0.004,3351.8,3351.4,2.99111074]
[1641465303397,0.004,3351.8,3351.7,2.00479]
[1641465303596,0.004,3351.8,3351.7,2.234781]
[1641465306700,0.004,3351.8,3351.7,2.00479]
[1641465307102,0.504,3351.8,3351.7,2.00479]
[1641465308701,0.504,3351.8,3351.7,2.234781]
[1641465308902,0.0001,3351.8,3351.7,3.734781]
[1641465309103,2.00479,3352.7,3351.7,3.734781]
[1641465309303,1.0,3353.0,3352.3,1.5]
[1641465309504,1.0,3353.0,3352.8,2.00479]
[1641465309705,1.0,3353.0,3352.8,2.234781]
[1641465309904,1.0,3353.0,3352.8,2.00479]
[1641465310704,1.13563859,3352.9,3352.8,2.00479]
[1641465310907,1.50324459,3353.6,3352.7,2.00479]
[1641465311506,1.50324459,3353.6,3353.4,1.5]
[1641465311706,1.50324459,3353.6,3353.5,0.132394]
[1641465311905,1.34090839,3353.9,3353.5,0.362385]
[1641465312107,1.34090839,3353.9,3353.8,1.5]
[1641465312309,4.17617699,3354.1,3353.8,1.62244937]
[1641465312507,2.17138699,3354.1,3353.8,1.62244937]
[1641465312709,0.5,3354.1,3353.8,0.132394]
[1641465313009,1.67138699,3354.3,3353.8,0.132394]
[1641465313207,1.80377999,3354.3,3353.8,0.132394]
[1641465313409,1.80377999,3354.3,3353.5,1.12256483]
[1641465313608,2.00479,3354.2,3353.4,2.00479]
[1641465314610,0.132394,3354.1,3353.4,2.00479]
[1641465314814,14.492394,3354.1,3352.7,2.00479]
[1641465315111,12.992394,3354.1,3352.7,2.00479]
[1641465315313,14.48312241,3354.1,3352.7,2.00479]
[1641465315511,14.86479,3353.3,3352.7,2.00479]
[1641465315712,2.00479,3353.3,3352.7,2.00479]
[1641465317615,0.42762576,3354.0,3353.2,1.5]
[1641465317818,0.42762576,3354.0,3353.2,1.49021081]
[1641465318016,0.42762576,3354.0,3353.0,1.49037738]
[1641465318219,2.50479,3354.2,3353.0,1.49037738]
[1641465318421,2.50479,3354.2,3352.7,2.00479]
[1641465318618,12.86,3354.1,3352.7,3.50479]
[1641465318822,12.86,3354.1,3352.7,2.00479]
[1641465319018,2.50479,3354.2,3352.7,3.50479]
[1641465319220,1.0,3354.0,3352.7,3.50479]
[1641465319620,1.0,3354.0,3353.2,2.00479]
[1641465319821,0.132394,3353.9,3353.2,2.00479]
[1641465320522,0.132394,3353.9,3352.7,2.00479]
[1641465321525,2.00479,3353.6,3352.7,2.00479]
[1641465321824,14.86479,3353.6,3352.7,2.00479]
[1641465322024,2.00479,3353.6,3352.7,2.00479]
[1641465322528,2.50479,3353.6,3352.7,2.00479]
[1641465323327,15.36479,3353.6,3352.7,2.00479]
[1641465324225,2.50479,3353.6,3352.7,2.00479]
[1641465325329,12.86,3353.5,3352.7,2.00479]
[1641465325629,1.632394,3353.4,3352.7,2.00479]
[1641465325828,1.5,3352.8,3351.8,1.49091066]
[1641465326129,1.49131533,3352.8,3351.4,1.56025274]
[1641465326427,12.86,3352.7,3351.4,1.56025274]
[1641465326829,12.86,3352.7,3351.2,1.87230329]
[1641465327031,12.86,3352.5,3351.1,33.42780252]
[1641465327232,12.86,3352.5,3351.1,1.29060252]
[1641465327430,12.86,3352.3,3351.1,1.29060252]
[1641465327632,2.00479,3351.9,3351.1,3.29539252]
[1641465327930,0.132394,3351.8,3351.1,3.29539252]
[1641465328130,2.00479,3351.9,3351.1,3.29539252]
[1641465328329,2.00479,3351.9,3351.1,4.79539252]
[1641465328530,2.00479,3351.9,3351.3,1.5]
[1641465328732,2.00479,3351.9,3351.1,3.29539252]
[1641465329130,0.132394,3351.8,3351.1,2.00479]
[1641465329933,1.5,3351.3,3350.7,1.29060252]
[1641465330138,1.5,3350.9,3350.2,1.87230329]
[1641465330335,1.5,3350.5,3349.8,0.63152061]
[1641465330532,1.5,3349.9,3349.8,0.63152061]
[1641465330732,1.5,3349.9,3349.6,3.12869415]
[1641465330935,1.5,3349.9,3349.3,3.88849307]
[1641465331134,1.5,3349.5,3349.1,4.42509615]
[1641465331534,12.86,3349.4,3349.1,4.33969615]
[1641465331736,14.86479,3349.2,3349.1,4.33969615]
[1641465332135,21.136464,3349.2,3349.1,9.615e-05]
[1641465332535,22.62949825,3349.2,3348.0,1.62492433]
[1641465332837,1.5,3348.9,3348.0,1.62492433]
[1641465333235,17.63833,3348.8,3348.0,1.62492433]
[1641465333437,0.132394,3348.7,3348.0,1.62492433]
[1641465333636,12.86,3348.3,3348.0,1.62492433]
[1641465334237,12.86,3348.3,3347.6,2.00479]
[1641465334438,0.132394,3348.2,3347.6,2.00479]
[1641465334638,0.132394,3348.2,3347.3,2.00479]
[1641465334837,0.132394,3348.2,3347.6,0.97539394]
[1641465336637,0.132394,3348.2,3347.3,2.00479]
[1641465337037,1.0,3348.9,3347.7,1.5]
[1641465337538,1.0,3348.9,3347.7,0.6395]
[1641465337740,1.0,3348.9,3348.3,2.00479]
[1641465337946,0.132394,3348.8,3348.3,2.00479]
[1641465338143,1.0,3348.9,3348.3,2.00479]
[1641465338341,1.132394,3348.9,3348.3,2.00479]
[1641465340241,2.32319654,3348.8,3348.6,0.97539394]
[1641465341242,2.45559054,3348.8,3348.6,0.97539394]
[1641465342444,2.32319654,3348.8,3348.6,0.97539394]
[1641465343047,0.63359906,3348.7,3348.6,0.97539394]
[1641465343644,0.5,3348.8,3348.6,0.97539394]
[1641465343844,4.37795309,3349.9,3348.7,3.49708676]
[1641465344045,1.01362022,3348.8,3348.7,3.49708676]
[1641465344245,1.01362022,3348.8,3348.7,3.72707776]
[1641465344448,1.35149363,3349.1,3348.7,3.72707776]
[1641465344844,1.35149363,3349.1,3348.7,2.234781]
[1641465345647,1.35149363,3349.1,3348.4,1.96918763]
[1641465345848,2.00479,3348.9,3347.6,2.00479]
[1641465346044,0.5,3348.8,3347.6,2.00479]
[1641465347846,0.5,3348.8,3348.3,2.00479]
[1641465348048,0.132394,3348.7,3348.3,2.00479]
[1641465349048,0.132394,3348.7,3347.6,2.00479]
[1641465349447,4.778758,3348.6,3346.5,31.3379]
[1641465349649,12.86,3348.5,3346.3,1.5]
[1641465349849,2.00479,3348.2,3347.4,2.00479]
[1641465350049,0.132394,3348.1,3347.4,2.00479]
[1641465350250,33.668,3349.0,3347.4,2.00479]
[1641465350550,46.528,3349.0,3347.5,1.49283365]
[1641465350755,12.86,3349.0,3347.4,2.00479]
[1641465351152,1.4929072,3349.2,3347.4,2.00479]
[1641465351552,12.86,3349.0,3347.4,2.00479]
[1641465351751,2.00479,3348.2,3347.4,2.00479]
[1641465354656,2.00479,3348.2,3347.4,3.49767268]
[1641465355659,12.992394,3348.1,3347.4,2.00479]
[1641465355861,2.00479,3347.5,3346.6,2.00479]
[1641465356258,0.6892,3347.5,3347.2,1.49295623]
[1641465356458,0.6892,3347.5,3347.3,0.229991]
[1641465357058,2.00479,3348.2,3347.4,1.5]
[1641465357259,2.00479,3348.2,3347.7,1.5]
[1641465357458,2.00479,3348.2,3347.4,1.49285148]
[1641465357859,2.00479,3348.2,3347.7,2.00479]
[1641465358959,2.137184,3348.2,3347.7,2.00479]
[1641465360467,2.00479,3348.2,3347.7,2.00479]
[1641465361767,2.50479,3348.2,3347.7,2.00479]
[1641465362367,0.132394,3348.1,3347.7,2.00479]
[1641465362569,0.692994,3348.1,3347.7,2.00479]
[1641465364367,1.192994,3348.1,3347.7,2.00479]
[1641465365371,1.192994,3348.1,3346.4,33.03539288]
[1641465365574,1.692994,3348.1,3346.4,1.49329288]
[1641465365771,17.640043,3348.0,3346.4,1.49329288]
[1641465365973,2.00479,3347.1,3346.4,1.49329288]
[1641465366176,2.137184,3347.1,3346.4,1.49329288]
[1641465367773,12.86,3347.0,3346.4,1.49329288]
[1641465367973,0.132394,3346.9,3346.4,1.49329288]
[1641465368176,0.132394,3346.9,3346.3,2.00479]
[1641465369177,0.132394,3346.9,3345.6,1.49368991]
[1641465369178,1.49433274,3346.4,3345.6,1.49368991]
[1641465369476,0.132394,3346.3,3345.6,1.49368991]
[1641465369877,2.00479,3345.9,3345.6,1.49368991]
[1641465370077,2.00479,3345.9,3345.7,0.229991]
[1641465370277,2.00479,3346.3,3345.7,0.229991]
[1641465370477,0.132394,3346.3,3345.7,0.229991]
[1641465370678,1.17112299,4773.3,3346.0,1.5]
[1641465370877,3.05399992,3348.1,3346.7,1.5]
[1641465371078,1.5606,3348.1,3346.7,0.8866]
[1641465371284,1.00059101,3347.0,3346.7,2.49933685]
[1641465371479,1.00059101,3347.0,3346.8,0.229991]
[1641465371680,1.00059101,3347.0,3346.7,1.61273685]
[1641465371880,1.00059101,3347.0,3346.9,2.00479]
[1641465372279,1.00059101,3347.0,3346.9,2.234781]
[1641465372481,1.00059101,3347.0,3346.7,1.61273685]
[1641465372681,1.00059101,3346.9,3346.6,3.61752685]
[1641465373282,1.00059101,3346.9,3346.7,0.229991]
[1641465373481,1.00059101,3346.9,3346.6,3.34751785]
[1641465374285,0.362385,3346.8,3346.6,1.61273685]
[1641465374486,0.362385,3346.8,3346.7,1.61273685]
[1641465375086,0.229991,3346.8,3346.7,1.61273685]
[1641465375486,0.229991,3346.8,3346.3,1.61273685]
[1641465375487,2.2153819,3346.8,3346.3,1.61273685]
[1641465375885,2.2153819,3346.8,3346.7,2.00479]
[1641465376487,1.35149363,3346.8,3346.7,2.081399]
[1641465376686,1.85149363,3346.9,3346.7,2.081399]
[1641465377287,1.85149363,3346.9,3346.7,2.00479]
[1641465377886,0.132394,3346.8,3346.7,2.00479]
[1641465378287,0.362385,3346.8,3346.7,2.00479]
[1641465378486,0.132394,3346.8,3346.1,2.00479]
[1641465378886,0.5,3346.9,3346.1,2.00479]
[1641465379190,0.132394,3346.8,3346.1,2.00479]
[1641465380388,1.0,3346.9,3346.1,2.00479]
[1641465380588,0.132394,3346.8,3346.1,2.00479]
[1641465383490,1.0,3346.9,3346.2,0.132394]
[1641465384293,1.0,3346.9,3346.6,1.5]
[1641465384492,2.00479,3347.7,3346.8,1.5]
[1641465384891,2.00479,3347.7,3347.3,1.5]
[1641465385091,1.0,3348.2,3347.6,2.99278463]
[1641465385292,0.0001,3348.2,3347.9,1.5]
[1641465385492,0.0001,3348.2,3348.1,2.99241035]
[1641465385694,0.0001,3348.2,3348.1,1.49241035]
[1641465386094,0.0001,3348.2,3348.1,2.00479]
[1641465387095,14.21149363,3349.8,3348.2,0.9999]
[1641465387695,4.777545,3349.7,3348.2,0.9999]
[1641465387895,12.86,3349.6,3348.2,0.9999]
[1641465388094,15.0478,3349.6,3349.0,2.00479]
[1641465388295,0.132391,3349.5,3349.0,2.00479]
[1641465388495,0.132391,3349.5,3348.2,0.9999]
[1641465388695,1.5,3349.2,3348.2,0.9999]
[1641465388895,1.5,3349.0,3348.2,0.9999]
[1641465389095,1.5,3348.7,3348.2,0.9999]
[1641465389498,0.132391,3348.6,3348.2,0.9999]
[1641465390103,2.00479,3348.4,3348.2,0.9999]
[1641465390304,1.632391,3348.3,3347.6,2.00479]
[1641465390499,0.754,3348.4,3347.6,2.137184]
[1641465390701,1.49312565,3348.7,3347.6,2.137184]
[1641465391700,2.00479,3348.8,3347.6,2.137184]
[1641465391901,2.99311896,3348.7,3347.6,2.137184]
[1641465392103,1.49311896,3348.7,3347.9,1.0]
[1641465392301,0.132391,3348.6,3347.6,2.00479]
[1641465392502,0.132391,3348.6,3347.7,1.0]
[1641465392701,0.132391,3348.6,3347.9,1.0]
[1641465392902,0.132391,3348.6,3347.6,2.00479]
[1641465393102,0.5,3348.4,3347.6,2.00479]
[1641465393303,0.132391,3348.3,3347.6,2.00479]
[1641465394104,2.00479,3348.2,3347.6,2.00479]
[1641465394304,0.132391,3348.1,3347.6,2.00479]
[1641465394503,0.837491,3348.1,3347.6,2.00479]
[1641465395303,0.7051,3348.1,3347.9,1.0]
[1641465395506,0.935091,3348.1,3347.9,1.132394]
[1641465396308,0.935091,3348.1,3347.9,0.132394]
[1641465396505,0.935091,3348.1,3347.6,2.00479]
[1641465396707,1.067482,3348.1,3347.6,2.00479]
[1641465397105,0.067482,3348.1,3347.6,2.00479]
[1641465397708,0.067482,3348.1,3347.9,1.0]
[1641465398206,0.067482,3348.1,3347.6,2.137184]
[1641465398605,0.567482,3348.1,3347.6,2.137184]
[1641465398807,1.067482,3348.1,3347.6,2.137184]
[1641465400107,1.067482,3348.1,3347.6,2.00479]
[1641465400607,1.067482,3348.1,3347.3,2.00479]
[1641465400908,1.067482,3348.1,3347.4,0.132394]
[1641465401309,1.0,3348.1,3348.0,1.0]
[1641465401507,1.0,3348.1,3348.0,1.362385]
[1641465401708,1.0,3348.1,3348.0,1.132394]
[1641465402108,2.00479,3348.2,3348.0,1.132394]
[1641465402309,2.0,3348.6,3348.1,1.0]
[1641465402512,2.067482,3348.6,3348.0,0.132394]
[1641465403109,1.567482,3348.6,3348.0,0.132394]
[1641465403309,0.5,3348.1,3348.0,0.132394]
[1641465403509,0.5,3348.1,3348.0,0.362385]
[1641465404111,0.5,3348.1,3348.0,0.132394]
[1641465404614,0.567482,3348.1,3347.3,2.00479]
[1641465404811,0.5,3347.8,3346.7,1.0]
[1641465405014,0.5,3347.8,3346.4,1.0]
[1641465405212,12.86,3348.0,3346.6,1.0]
[1641465405511,1.49365867,3347.5,3346.8,0.96195023]
[1641465405714,0.067482,3347.4,3346.8,0.96195023]
[1641465406311,0.067482,3347.4,3347.1,2.00479]
[1641465407111,2.00479,3347.9,3347.1,2.00479]
[1641465407614,1.01013429,3347.3,3347.1,2.00479]
[1641465407817,1.01013429,3347.3,3347.2,0.229991]
[1641465408011,1.01013429,3347.3,3347.1,2.00479]
[1641465408211,1.01013429,3347.3,3346.8,2.00479]
[1641465408411,2.00479,3347.5,3346.8,2.137184]
[1641465408612,3.35163572,3347.5,3346.8,2.137184]
[1641465409711,3.35163572,3347.5,3347.0,1.0]
[1641465409911,1.01017688,3347.1,3347.0,1.0]
[1641465410112,1.01017688,3347.1,3347.0,0.229991]
[1641465410514,1.01017688,3347.1,3347.0,1.229991]
[1641465410713,1.01017688,3347.1,3347.0,0.229991]
[1641465411116,1.01017688,3347.3,3347.0,0.229991]
[1641465411314,1.01017688,3347.3,3346.9,0.132394]
[1641465411915,1.01017688,3347.3,3346.2,1.0]
[1641465412113,0.5,3347.1,3346.2,1.0]
[1641465412315,2.00479,3346.8,3346.2,1.0]
[1641465412715,2.01017688,3347.3,3346.7,1.0]
[1641465412919,2.01017688,3347.3,3346.8,1.0]
[1641465413617,2.01017688,3347.3,3346.1,2.77546901]
[1641465413618,1.01017688,3346.9,3346.1,2.77546901]
[1641465413819,1.01017688,3346.9,3346.5,1.0]
[1641465414317,1.01017688,3346.9,3346.8,1.0]
[1641465414518,1.01017688,3346.9,3346.7,2.00479]
[1641465414818,1.01017688,3347.0,3346.7,2.00479]
[1641465415017,1.01017688,3347.0,3346.9,1.0]
[1641465415218,1.01017688,3347.0,3346.7,2.00479]
[1641465415722,1.01017688,3347.0,3346.2,1.0]
[1641465415923,1.66067688,3347.0,3346.2,1.0]
[1641465416125,1.66067688,3347.0,3346.3,0.132394]
[1641465416324,2.00479,3346.9,3346.3,0.132394]
[1641465416726,2.00479,3346.9,3346.4,1.0]
[1641465416926,2.00479,3346.9,3346.3,0.132394]
[1641465417127,2.00479,3346.9,3346.4,1.0]
[1641465417528,2.00479,3346.9,3346.2,3.00479]
[1641465418328,2.00479,3346.9,3346.2,3.137184]
[1641465418528,2.00479,3346.9,3346.4,1.0]
[1641465418927,2.00479,3346.9,3346.3,0.132394]
[1641465419329,2.00479,3346.9,3346.4,1.0]
[1641465419631,2.00479,3346.9,3346.5,1.0]
[1641465419831,2.00479,3346.9,3346.4,1.0]
[1641465420031,1.01017688,3347.0,3346.8,1.0]
[1641465420232,1.01017688,3347.0,3346.9,3.734781]
[1641465420635,1.01017688,3347.0,3346.9,3.867175]
[1641465421033,1.66733696,3347.5,3346.9,3.867175]
[1641465421231,1.01016115,3347.2,3347.1,2.99306546]
[1641465421630,1.01016115,3347.2,3347.1,3.35545046]
[1641465421831,1.01016115,3347.2,3347.1,2.35545046]
[1641465422232,1.01016115,3347.2,3347.1,4.36024046]
[1641465422530,1.66733696,3347.7,3347.1,2.867175]
[1641465422731,0.62064339,3348.0,3347.5,0.5]
[1641465422930,0.62064339,3348.0,3347.5,0.632394]
[1641465423736,0.62064339,3348.0,3347.9,0.5]
[1641465423934,0.62064339,3348.0,3347.9,0.862385]
[1641465424132,0.62064339,3348.0,3347.9,0.632394]
[1641465424333,0.62064339,3348.0,3347.9,0.132394]
[1641465424734,1.66733696,3348.2,3347.9,0.632394]
[1641465424933,2.00479,3348.3,3347.9,0.132394]
[1641465425736,2.00479,3348.3,3348.0,0.229991]
[1641465425933,0.270009,3348.0,3347.9,0.132394]
[1641465426735,1.0,3348.0,3347.9,0.132394]
[1641465427135,1.62063781,3348.0,3347.9,0.132394]
[1641465427436,1.39064681,3348.0,3347.9,0.132394]
[1641465427636,1.62063781,3348.0,3347.9,0.132394]
[1641465429337,1.62063781,3348.0,3347.8,2.00479]
[1641465429537,1.47583781,3348.0,3347.8,2.00479]
[1641465429738,1.47583781,3348.0,3347.1,3.49787775]
[1641465429936,1.47583781,3348.0,3347.1,2.00479]
[1641465430337,2.00479,3347.6,3347.1,2.00479]
[1641465431940,1.9675141,3347.5,3347.1,2.00479]
[1641465433141,1.34687629,3347.4,3347.1,2.00479]
[1641465433342,0.229991,3347.3,3347.1,2.00479]
[1641465433942,1.57686729,3347.3,3347.1,2.00479]
[1641465434140,1.34687629,3347.3,3347.1,2.00479]
[1641465434341,1.34687629,3347.3,3347.1,4.00958]
[1641465434942,1.34687629,3347.4,3347.1,2.00479]
[1641465435142,0.229991,3347.3,3347.1,2.00479]
[1641465436143,0.729991,3347.3,3347.2,0.132394]
[1641465436543,0.729991,3347.3,3347.2,0.209003]
[1641465436745,0.5,3347.3,3347.2,0.132394]
[1641465437546,0.5,3347.3,3347.2,0.209003]
[1641465438147,1.12321099,3347.3,3347.2,0.209003]
[1641465438749,1.12321099,3347.3,3347.2,0.132394]
[1641465438949,0.5,3347.3,3347.2,0.209003]
[1641465439151,0.5,3347.3,3347.2,0.132394]
[1641465439751,0.5,3347.3,3347.2,0.209003]
[1641465441155,0.5,3347.6,3347.2,0.209003]
[1641465442354,0.5,3347.6,3347.5,2.00479]
[1641465442555,0.5,3347.6,3347.5,2.081399]
[1641465442955,0.729991,3347.6,3347.5,2.00479]
[1641465443154,0.729991,3347.6,3347.4,0.132394]
[1641465443354,0.5,3347.6,3347.5,0.076609]
[1641465443554,0.5,3347.6,3347.4,0.132394]
[1641465444155,0.729991,3347.6,3347.4,0.132394]
[1641465444553,0.674891,3347.6,3347.4,0.132394]
[1641465444755,0.4449,3347.6,3347.4,0.132394]
[1641465445559,0.4449,3347.6,3347.5,0.076609]
[1641465446657,1.45435507,3347.6,3347.5,0.076609]
[1641465446858,1.68434607,3347.6,3347.4,0.132394]
[1641465447058,1.68434607,3347.6,3347.4,0.209003]
[1641465447257,1.45435507,3347.6,3347.4,0.209003]
[1641465447659,0.4449,3347.6,3347.4,0.209003]
[1641465447859,0.674891,3347.6,3347.4,0.209003]
[1641465448560,0.674891,3347.6,3347.4,0.132394]
[1641465448762,1.68434607,3347.6,3347.4,0.132394]
[1641465450065,0.674891,3347.6,3347.4,0.132394]
[1641465450463,2.44969,3347.6,3347.5,0.076609]
[1641465450663,2.679681,3347.6,3347.4,0.132394]
[1641465451168,1.68434607,3347.6,3347.4,0.132394]
[1641465451364,1.45435507,3347.6,3347.5,0.076609]
[1641465451567,1.45435507,3347.6,3347.4,0.132394]
[1641465451765,1.68434607,3347.6,3347.4,0.132394]
[1641465453367,1.00945507,3347.5,3347.1,2.00479]
[1641465455069,1.5,3347.2,3346.3,0.9773038]
[1641465455268,1.00945507,3347.4,3346.3,0.9773038]
[1641465456069,1.00945507,3346.8,3345.9,1.49359174]
[1641465456467,2.00479,3346.6,3345.9,3.49838174]
[1641465457068,2.00479,3346.6,3345.9,1.49359174]
[1641465458372,2.00479,3346.2,3345.9,1.49359174]
[1641465459473,2.00479,3346.2,3346.0,0.076609]
[1641465462174,2.00479,3346.2,3346.1,0.076609]
[1641465462373,2.00479,3346.2,3345.9,1.49359174]
[1641465463074,0.229991,3346.1,3345.9,1.49359174]
[1641465463274,2.00479,3346.2,3346.0,0.076609]
[1641465463474,2.44969,3346.2,3345.9,1.49359174]
[1641465464077,2.44969,3346.2,3346.0,0.076609]
[1641465464278,0.229991,3346.1,3345.9,1.49359174]
[1641465464479,2.44969,3346.2,3345.9,1.49359174]
[1641465465278,3.7957733,3346.2,3346.1,1.9156105]
[1641465465877,3.7957733,3346.2,3346.1,1.9922195]
[1641465466479,4.0257643,3346.2,3346.1,1.30353615]
[1641465466679,2.679681,3346.2,3345.9,1.49359174]
[1641465466880,2.44969,3346.2,3346.0,0.076609]
[1641465467182,2.44969,3346.2,3345.9,1.49359174]
[1641465467382,2.44969,3346.2,3345.7,0.98458972]
[1641465467383,0.229991,3346.1,3345.7,0.98458972]
[1641465468482,2.00479,3345.8,3345.7,0.98458972]
[1641465468682,2.234781,3345.8,3345.5,1.30353615]
[1641465468882,2.234781,3345.8,3345.4,1.49383048]
[1641465469687,2.234781,3345.8,3345.3,0.98458972]
[1641465470285,2.974381,3345.8,3345.3,0.98458972]
[1641465470485,2.00479,3345.4,3345.3,0.98458972]
[1641465470685,2.234781,3345.4,3345.3,0.98458972]
[1641465471486,16.594781,3345.4,3344.3,2.43964933]
[1641465471685,16.594781,3345.4,3344.7,1.59725918]
[1641465471686,1.5,3344.8,3344.7,1.59725918]
[1641465471885,0.229991,3344.8,3344.7,1.59725918]
[1641465472087,4.78333,3345.3,3344.7,1.67386818]
[1641465472288,1.0104344,3345.6,3344.7,1.59725918]
[1641465472488,1.0104344,3345.6,3344.7,3.60204918]
[1641465472787,0.5,3344.8,3344.7,3.60204918]
[1641465472988,0.5,3344.8,3344.7,3.81105218]
[1641465473189,1.0104344,3345.6,3344.7,3.81105218]
[1641465473388,1.0104344,3345.6,3344.7,5.31105218]
[1641465473588,1.0104344,3345.6,3344.7,3.81105218]
[1641465473788,4.00958,3345.8,3344.7,2.137184]
[1641465475588,0.5,3344.8,3344.7,2.137184]
[1641465475788,0.5,3344.8,3344.7,2.213793]
[1641465477291,0.5,3344.8,3344.7,2.79247355]
[1641465478591,0.5,3344.8,3344.7,2.213793]
[1641465478992,1.0,3346.1,3344.7,5.3611193]
[1641465479191,0.5,3345.8,3345.4,1.5]
[1641465479391,0.5,3345.8,3345.5,0.132394]
[1641465479994,0.5,3345.8,3345.6,0.229991]
[1641465480193,0.5,3345.8,3345.5,0.132394]
[1641465480892,0.5,3345.8,3345.6,0.229991]
[1641465481093,0.5,3345.8,3345.5,0.132394]
[1641465481693,0.5,3345.8,3345.6,0.229991]
[1641465482093,1.0,3346.1,3345.7,15.98594559]
[1641465482293,1.79236445,3346.2,3346.0,1.5]
[1641465482594,0.01316445,3346.2,3346.1,2.367175]
[1641465482791,1.68433057,3346.5,3346.1,2.367175]
[1641465482995,1.68433057,3346.5,3346.4,1.5]
[1641465483192,1.68433057,3346.5,3346.4,1.632394]
[1641465483492,1.68433057,3346.5,3346.4,1.862385]
[1641465484092,2.00479,3347.0,3346.4,1.862385]
[1641465484393,2.00479,3347.0,3346.4,0.362385]
[1641465484793,2.00479,3347.0,3346.6,1.5]